fUSD/lending_fUSD_20260512
["ID","MTS","AMOUNT","RATE_DAILY","PERIOD"]
[422128927,1778599838000,-184.3554798,0.0001392,2]
[422128937,1778599838000,-500.0,0.0001392,2]
[422128924,1778599838000,-488.43385265,0.0001392,2]
[422128925,1778599838000,-249.16667116,0.0001392,2]
[422128908,1778599838000,-500.0,0.00013846,2]
[422128912,1778599838000,-150.0,0.00013916,2]
[422128916,1778599838000,-500.0,0.0001392,2]
[422128917,1778599838000,-500.0,0.0001392,2]
[422128909,1778599838000,-317.23043323,0.00013846,2]
[422128919,1778599838000,-500.0,0.0001392,2]
[422128921,1778599838000,-284.400002,0.0001392,2]
[422128918,1778599838000,-500.0,0.0001392,2]
[422128922,1778599838000,-26.62792589,0.0001392,2]
[422128923,1778599838000,-500.0,0.0001392,2]
[422128920,1778599838000,-188.97207211,0.0001392,2]
[422128944,1778599840000,-159.54673039,0.0001392,2]
[422128947,1778599840000,-500.0,0.0001392,2]
[422128946,1778599840000,-500.0,0.0001392,2]
[422128949,1778599840000,-500.0,0.0001392,2]
[422128948,1778599840000,-500.0,0.0001392,2]
[422128952,1778599840000,-500.0,0.0001392,2]
[422128940,1778599840000,-461.80832185,0.0001392,2]
[422128950,1778599840000,-500.0,0.0001392,2]
[422128943,1778599840000,-340.45326961,0.0001392,2]
[422128942,1778599840000,-500.0,0.0001392,2]
[422128939,1778599840000,-118.99991741,0.0001392,2]
[422128941,1778599840000,-38.19167815,0.0001392,2]
[422128951,1778599840000,-500.0,0.0001392,2]
[422128953,1778599840000,-500.0,0.0001392,2]
[422128945,1778599840000,-500.0,0.0001392,2]
[422128956,1778599840000,-500.0,0.0001392,2]
[422128968,1778599840000,-168.23020515,0.0001392,2]
[422128966,1778599840000,-500.0,0.0001392,2]
[422128967,1778599840000,-510.16077065,0.0001392,2]
[422128963,1778599840000,-295.97622881,0.0001392,2]
[422128954,1778599840000,-500.0,0.0001392,2]
[422128959,1778599840000,-500.0,0.0001392,2]
[422128962,1778599840000,-500.0,0.0001392,2]
[422128961,1778599840000,-500.0,0.0001392,2]
[422128957,1778599840000,-500.0,0.0001392,2]
[422128965,1778599840000,-500.0,0.0001392,2]
[422128955,1778599840000,-500.0,0.0001392,2]
[422128964,1778599840000,-500.0,0.0001392,2]
[422128958,1778599840000,-500.0,0.0001392,2]
[422128960,1778599840000,-500.0,0.0001392,2]
[422128994,1778599841000,-510.16077065,0.0001392,2]
[422128997,1778599841000,-510.16077065,0.0001392,2]
[422128999,1778599841000,-510.16077065,0.0001392,2]
[422129000,1778599841000,-510.16077065,0.0001392,2]
[422129004,1778599841000,-510.16077065,0.0001392,2]
[422129005,1778599841000,-510.16077065,0.0001392,2]
[422129001,1778599841000,-500.25442125,0.0001392,2]
[422129007,1778599841000,-510.16077065,0.0001392,2]
[422129002,1778599841000,-9.9063494,0.0001392,2]
[422128998,1778599841000,-510.16077065,0.0001392,2]
[422129009,1778599841000,-510.16077065,0.0001392,2]
[422129010,1778599841000,-510.16077065,0.0001392,2]
[422129006,1778599841000,-510.16077065,0.0001392,2]
[422128996,1778599841000,-510.16077065,0.0001392,2]
[422128986,1778599841000,-510.16077065,0.0001392,2]
[422128991,1778599841000,-175.95090035,0.0001392,2]
[422128993,1778599841000,-510.16077065,0.0001392,2]
[422128990,1778599841000,-334.2098703,0.0001392,2]
[422128989,1778599841000,-510.16077065,0.0001392,2]
[422128988,1778599841000,-510.16077065,0.0001392,2]
[422128987,1778599841000,-510.16077065,0.0001392,2]
[422128984,1778599841000,-220.81768683,0.0001392,2]
[422128985,1778599841000,-289.34308382,0.0001392,2]
[422128981,1778599841000,-34.18233665,0.0001392,2]
[422128982,1778599841000,-510.16077065,0.0001392,2]
[422128980,1778599841000,-475.978434,0.0001392,2]
[422128979,1778599841000,-510.16077065,0.0001392,2]
[422128977,1778599841000,-341.9305655,0.0001392,2]
[422128992,1778599841000,-510.16077065,0.0001392,2]
[422129012,1778599841000,-510.16077065,0.0001392,2]
[422128995,1778599841000,-510.16077065,0.0001392,2]
[422129011,1778599841000,-510.16077065,0.0001392,2]
[422129022,1778599841000,-510.16077065,0.0001392,2]
[422129043,1778599841000,-3779.55,0.00013921,2]
[422129042,1778599841000,-41985.38999998,0.00013921,2]
[422129038,1778599841000,-500.0,0.0001392,2]
[422129040,1778599841000,-500.0,0.0001392,2]
[422129039,1778599841000,-500.0,0.0001392,2]
[422129036,1778599841000,-500.0,0.0001392,2]
[422129037,1778599841000,-354.81777698,0.0001392,2]
[422129035,1778599841000,-500.0,0.0001392,2]
[422129034,1778599841000,-500.0,0.0001392,2]
[422129031,1778599841000,-500.0,0.0001392,2]
[422129033,1778599841000,-500.0,0.0001392,2]
[422129032,1778599841000,-500.0,0.0001392,2]
[422129030,1778599841000,-500.0,0.0001392,2]
[422129041,1778599841000,-85260.92753185,0.00013921,2]
[422129028,1778599841000,-500.0,0.0001392,2]
[422129029,1778599841000,-500.0,0.0001392,2]
[422129014,1778599841000,-510.16077065,0.0001392,2]
[422129019,1778599841000,-510.16077065,0.0001392,2]
[422129016,1778599841000,-62.56852595,0.0001392,2]
[422129020,1778599841000,-510.16077065,0.0001392,2]
[422129018,1778599841000,-510.16077065,0.0001392,2]
[422129015,1778599841000,-447.5922447,0.0001392,2]
[422129013,1778599841000,-510.16077065,0.0001392,2]
[422129021,1778599841000,-510.16077065,0.0001392,2]
[422129023,1778599841000,-510.16077065,0.0001392,2]
[422129025,1778599841000,-510.16077065,0.0001392,2]
[422129026,1778599841000,-500.0,0.0001392,2]
[422129027,1778599841000,-500.0,0.0001392,2]
[422129017,1778599841000,-510.16077065,0.0001392,2]
[422129049,1778599843000,-20313.04604814,0.00013921,2]
[422129051,1778599843000,-1245.77091902,0.00013921,2]
[422129050,1778599843000,-284.15960609,0.00013921,2]
[422129054,1778599843000,-4650.00000001,0.00013921,2]
[422129053,1778599843000,-484.56,0.00013921,2]
[422129055,1778599843000,-40083.68738986,0.00013921,2]
[422129052,1778599843000,-454.23973918,0.00013921,2]
[422129064,1778599846000,-79616.92080649,0.00013921,2]
[422129063,1778599846000,-1755.98127692,0.00013921,2]
[422129061,1778599846000,-3389.75148906,0.00013921,2]
[422129062,1778599846000,-23535.44548335,0.00013921,2]
[422129060,1778599846000,-29381.35602669,0.00013921,2]
[422129059,1778599846000,-8022.8079041,0.00013921,2]
[422129065,1778599847000,-953.77083911,0.00013921,2]
[422129067,1778599847000,-12045.0,0.00013921,2]
[422129068,1778599847000,-6412.50548311,0.00013921,2]
[422129066,1778599847000,-22787.04027939,0.00013921,2]
[422129073,1778600406000,172.01,7.754e-05,2]
[422129072,1778600406000,172.01,6.504e-05,2]
[422129085,1778600870000,-500.0,0.00041313,120]
[422129078,1778600870000,-500.0,0.00041313,120]
[422129079,1778600870000,-229.56305122,0.00041313,120]
[422129081,1778600870000,-521.12940949,0.00041313,120]
[422129082,1778600870000,-152.18,0.00041313,120]
[422129083,1778600870000,-550.09006127,0.00041313,120]
[422129084,1778600870000,-500.0,0.00041313,120]
[422129080,1778600870000,-500.0,0.00041313,120]
[422129088,1778600870000,-500.0,0.00041313,120]
[422129087,1778600870000,-500.0,0.00041313,120]
[422129089,1778600870000,-500.0,0.00041313,120]
[422129093,1778600870000,-500.0,0.00041313,120]
[422129090,1778600870000,-500.0,0.00041313,120]
[422129092,1778600870000,-500.0,0.00041313,120]
[422129091,1778600870000,-500.0,0.00041313,120]
[422129086,1778600870000,-500.0,0.00041313,120]
[422129111,1778600871000,-629.2,0.00041313,120]
[422129110,1778600871000,-629.2,0.00041313,120]
[422129109,1778600871000,-629.2,0.00041313,120]
[422129108,1778600871000,-629.2,0.00041313,120]
[422129107,1778600871000,-629.2,0.00041313,120]
[422129106,1778600871000,-629.2,0.00041313,120]
[422129105,1778600871000,-629.2,0.00041313,120]
[422129103,1778600871000,-629.2,0.00041313,120]
[422129100,1778600871000,-500.0,0.00041313,120]
[422129102,1778600871000,-499.68816124,0.00041313,120]
[422129113,1778600871000,-629.2,0.00041313,120]
[422129099,1778600871000,-500.0,0.00041313,120]
[422129095,1778600871000,-500.0,0.00041313,120]
[422129096,1778600871000,-500.0,0.00041313,120]
[422129098,1778600871000,-500.0,0.00041313,120]
[422129097,1778600871000,-500.0,0.00041313,120]
[422129094,1778600871000,-500.0,0.00041313,120]
[422129101,1778600871000,-500.0,0.00041313,120]
[422129112,1778600871000,-629.2,0.00041313,120]
[422129104,1778600871000,-629.2,0.00041313,120]
[422129115,1778600871000,-629.2,0.00041313,120]
[422129114,1778600871000,-629.2,0.00041313,120]
[422129133,1778600871000,-500.0,0.00041313,120]
[422129131,1778600871000,-500.0,0.00041313,120]
[422129132,1778600871000,-500.0,0.00041313,120]
[422129129,1778600871000,-500.0,0.00041313,120]
[422129127,1778600871000,-500.0,0.00041313,120]
[422129130,1778600871000,-500.0,0.00041313,120]
[422129126,1778600871000,-629.31159004,0.00041313,120]
[422129124,1778600871000,-629.2,0.00041313,120]
[422129128,1778600871000,-500.0,0.00041313,120]
[422129125,1778600871000,-629.2,0.00041313,120]
[422129120,1778600871000,-629.2,0.00041313,120]
[422129122,1778600871000,-629.2,0.00041313,120]
[422129121,1778600871000,-629.2,0.00041313,120]
[422129119,1778600871000,-629.2,0.00041313,120]
[422129117,1778600871000,-629.2,0.00041313,120]
[422129118,1778600871000,-629.2,0.00041313,120]
[422129123,1778600871000,-629.2,0.00041313,120]
[422129116,1778600871000,-629.2,0.00041313,120]
[422129147,1778600872000,-500.0,0.00041313,120]
[422129146,1778600872000,-594.4260631,0.00041313,120]
[422129148,1778600872000,-500.0,0.00041313,120]
[422129151,1778600872000,-500.0,0.00041313,120]
[422129150,1778600872000,-500.0,0.00041313,120]
[422129152,1778600872000,-500.0,0.00041313,120]
[422129145,1778600872000,-524.3260427,0.00041313,120]
[422129149,1778600872000,-500.0,0.00041313,120]
[422129144,1778600872000,-500.0,0.00041313,120]
[422129134,1778600872000,-500.0,0.00041313,120]
[422129143,1778600872000,-500.0,0.00041313,120]
[422129140,1778600872000,-500.0,0.00041313,120]
[422129141,1778600872000,-500.0,0.00041313,120]
[422129138,1778600872000,-500.0,0.00041313,120]
[422129139,1778600872000,-500.0,0.00041313,120]
[422129136,1778600872000,-500.0,0.00041313,120]
[422129137,1778600872000,-500.0,0.00041313,120]
[422129135,1778600872000,-500.0,0.00041313,120]
[422129153,1778600872000,-500.0,0.00041313,120]
[422129142,1778600872000,-500.0,0.00041313,120]
[422129155,1778600872000,-497.23636242,0.00041313,120]
[422129154,1778600872000,-500.0,0.00041313,120]
[422129156,1778600872000,-500.0,0.00041313,120]
[422129176,1778600872000,-1375.17,0.00041313,120]
[422129175,1778600872000,-1375.17,0.00041313,120]
[422129173,1778600872000,-1375.17,0.00041313,120]
[422129174,1778600872000,-1375.17,0.00041313,120]
[422129171,1778600872000,-1375.17,0.00041313,120]
[422129172,1778600872000,-1375.17,0.00041313,120]
[422129169,1778600872000,-1375.17,0.00041313,120]
[422129170,1778600872000,-1375.17,0.00041313,120]
[422129167,1778600872000,-1375.17,0.00041313,120]
[422129168,1778600872000,-1375.17,0.00041313,120]
[422129177,1778600872000,-1375.17,0.00041313,120]
[422129164,1778600872000,-500.0,0.00041313,120]
[422129166,1778600872000,-1375.17,0.00041313,120]
[422129159,1778600872000,-500.0,0.00041313,120]
[422129161,1778600872000,-500.0,0.00041313,120]
[422129158,1778600872000,-249949.02676856,0.00041313,120]
[422129157,1778600872000,-634.30838947,0.00041313,120]
[422129162,1778600872000,-500.0,0.00041313,120]
[422129163,1778600872000,-500.0,0.00041313,120]
[422129165,1778600872000,-457.051853,0.00041313,120]
[422129160,1778600872000,-500.0,0.00041313,120]
[422129195,1778600873000,-1436.56,0.00041313,120]
[422129189,1778600873000,-1375.28522291,0.00041313,120]
[422129194,1778600873000,-500.0,0.00041313,120]
[422129192,1778600873000,-500.0,0.00041313,120]
[422129193,1778600873000,-499.78330868,0.00041313,120]
[422129191,1778600873000,-500.0,0.00041313,120]
[422129190,1778600873000,-500.0,0.00041313,120]
[422129188,1778600873000,-1375.17,0.00041313,120]
[422129184,1778600873000,-1375.17,0.00041313,120]
[422129182,1778600873000,-1375.17,0.00041313,120]
[422129186,1778600873000,-1375.17,0.00041313,120]
[422129185,1778600873000,-1375.17,0.00041313,120]
[422129183,1778600873000,-1375.17,0.00041313,120]
[422129180,1778600873000,-1375.17,0.00041313,120]
[422129181,1778600873000,-1375.17,0.00041313,120]
[422129179,1778600873000,-1375.17,0.00041313,120]
[422129178,1778600873000,-1375.17,0.00041313,120]
[422129196,1778600873000,-1436.56,0.00041313,120]
[422129187,1778600873000,-1375.17,0.00041313,120]
[422129198,1778600873000,-1436.56,0.00041313,120]
[422129197,1778600873000,-1436.56,0.00041313,120]
[422129199,1778600873000,-1436.56,0.00041313,120]
[422129219,1778600873000,-500.0,0.00041313,120]
[422129217,1778600873000,-1436.56,0.00041313,120]
[422129216,1778600873000,-1436.56,0.00041313,120]
[422129215,1778600873000,-1436.56,0.00041313,120]
[422129214,1778600873000,-1436.56,0.00041313,120]
[422129213,1778600873000,-1436.56,0.00041313,120]
[422129212,1778600873000,-1436.56,0.00041313,120]
[422129211,1778600873000,-1436.56,0.00041313,120]
[422129209,1778600873000,-1436.56,0.00041313,120]
[422129218,1778600873000,-1436.61995433,0.00041313,120]
[422129207,1778600873000,-1436.56,0.00041313,120]
[422129206,1778600873000,-1436.56,0.00041313,120]
[422129208,1778600873000,-1436.56,0.00041313,120]
[422129205,1778600873000,-1436.56,0.00041313,120]
[422129203,1778600873000,-1436.56,0.00041313,120]
[422129202,1778600873000,-1436.56,0.00041313,120]
[422129204,1778600873000,-1436.56,0.00041313,120]
[422129201,1778600873000,-1436.56,0.00041313,120]
[422129200,1778600873000,-1436.56,0.00041313,120]
[422129210,1778600873000,-1436.56,0.00041313,120]
[422129231,1778600874000,-500.0,0.00041313,120]
[422129233,1778600874000,-500.0,0.00041313,120]
[422129234,1778600874000,-500.0,0.00041313,120]
[422129238,1778600874000,-591.73469834,0.00041313,120]
[422129235,1778600874000,-500.0,0.00041313,120]
[422129237,1778600874000,-500.0,0.00041313,120]
[422129232,1778600874000,-500.0,0.00041313,120]
[422129236,1778600874000,-500.0,0.00041313,120]
[422129230,1778600874000,-500.0,0.00041313,120]
[422129225,1778600874000,-500.0,0.00041313,120]
[422129229,1778600874000,-500.0,0.00041313,120]
[422129227,1778600874000,-500.0,0.00041313,120]
[422129228,1778600874000,-500.0,0.00041313,120]
[422129224,1778600874000,-500.0,0.00041313,120]
[422129223,1778600874000,-500.0,0.00041313,120]
[422129222,1778600874000,-500.0,0.00041313,120]
[422129221,1778600874000,-500.0,0.00041313,120]
[422129220,1778600874000,-500.0,0.00041313,120]
[422129241,1778600874000,-500.0,0.00041313,120]
[422129226,1778600874000,-500.0,0.00041313,120]
[422129242,1778600874000,-437.89249042,0.00041313,120]
[422129261,1778600874000,-500.0,0.00041313,120]
[422129239,1778600874000,-500.0,0.00041313,120]
[422129240,1778600874000,-500.0,0.00041313,120]
[422129262,1778600874000,-500.0,0.00041313,120]
[422129259,1778600874000,-500.0,0.00041313,120]
[422129258,1778600874000,-500.0,0.00041313,120]
[422129260,1778600874000,-500.0,0.00041313,120]
[422129257,1778600874000,-617.89245303,0.00041313,120]
[422129254,1778600874000,-500.0,0.00041313,120]
[422129255,1778600874000,-500.0,0.00041313,120]
[422129256,1778600874000,-500.0,0.00041313,120]
[422129253,1778600874000,-500.0,0.00041313,120]
[422129250,1778600874000,-500.0,0.00041313,120]
[422129252,1778600874000,-500.0,0.00041313,120]
[422129244,1778600874000,-500.0,0.00041313,120]
[422129246,1778600874000,-500.0,0.00041313,120]
[422129245,1778600874000,-500.0,0.00041313,120]
[422129243,1778600874000,-1000.0,0.00041313,120]
[422129251,1778600874000,-500.0,0.00041313,120]
[422129249,1778600874000,-500.0,0.00041313,120]
[422129248,1778600874000,-500.0,0.00041313,120]
[422129247,1778600874000,-500.0,0.00041313,120]
[422129275,1778600875000,-832.95,0.00041313,120]
[422129283,1778600875000,-832.95,0.00041313,120]
[422129281,1778600875000,-832.95,0.00041313,120]
[422129280,1778600875000,-832.95,0.00041313,120]
[422129278,1778600875000,-832.95,0.00041313,120]
[422129279,1778600875000,-832.95,0.00041313,120]
[422129277,1778600875000,-832.95,0.00041313,120]
[422129276,1778600875000,-832.95,0.00041313,120]
[422129273,1778600875000,-1247.085814,0.00041313,120]
[422129263,1778600875000,-500.0,0.00041313,120]
[422129272,1778600875000,-500.0,0.00041313,120]
[422129270,1778600875000,-500.0,0.00041313,120]
[422129271,1778600875000,-338.0,0.00041313,120]
[422129269,1778600875000,-500.0,0.00041313,120]
[422129266,1778600875000,-500.0,0.00041313,120]
[422129265,1778600875000,-500.0,0.00041313,120]
[422129267,1778600875000,-504.96052588,0.00041313,120]
[422129268,1778600875000,-572.92,0.00041313,120]
[422129264,1778600875000,-500.0,0.00041313,120]
[422129274,1778600875000,-832.95,0.00041313,120]
[422129282,1778600875000,-832.95,0.00041313,120]
[422129286,1778600875000,-832.95,0.00041313,120]
[422129284,1778600875000,-832.95,0.00041313,120]
[422129304,1778600875000,-151.0,0.00041313,120]
[422129305,1778600875000,-286.95,0.00041313,120]
[422129301,1778600875000,-151.0,0.00041313,120]
[422129302,1778600875000,-151.0,0.00041313,120]
[422129303,1778600875000,-151.0,0.00041313,120]
[422129300,1778600875000,-151.0,0.00041313,120]
[422129299,1778600875000,-151.0,0.00041313,120]
[422129297,1778600875000,-833.02394798,0.00041313,120]
[422129295,1778600875000,-832.95,0.00041313,120]
[422129285,1778600875000,-832.95,0.00041313,120]
[422129296,1778600875000,-832.95,0.00041313,120]
[422129292,1778600875000,-832.95,0.00041313,120]
[422129294,1778600875000,-832.95,0.00041313,120]
[422129293,1778600875000,-832.95,0.00041313,120]
[422129291,1778600875000,-832.95,0.00041313,120]
[422129290,1778600875000,-832.95,0.00041313,120]
[422129287,1778600875000,-832.95,0.00041313,120]
[422129289,1778600875000,-832.95,0.00041313,120]
[422129288,1778600875000,-832.95,0.00041313,120]
[422129298,1778600875000,-151.0,0.00041313,120]
[422129306,1778600876000,-500.0,0.00041313,120]
[422129311,1778600876000,-151.0,0.00041313,120]
[422129310,1778600876000,-151.0,0.00041313,120]
[422129308,1778600876000,-500.0,0.00041313,120]
[422129309,1778600876000,-377.52,0.00041313,120]
[422129307,1778600876000,-500.0,0.00041313,120]
[422129313,1778600876000,-150.00000001,0.00041313,120]
[422129314,1778600876000,-535.13448753,0.00041313,120]
[422129315,1778600876000,285.6,0.00027397,120]
[422129316,1778600876000,285.59,0.00027397,120]
[422129318,1778600876000,224.63513797,0.00041313,120]
[422129312,1778600876000,-200.0,0.00041313,120]
[422129317,1778600876000,500.0,0.00041313,120]
[422129319,1778600880000,281.64,0.00041313,120]
[422129321,1778600886000,758.0,0.00041313,120]
[422129320,1778600886000,532.08476084,0.00041313,120]
[422129323,1778600886000,6888.0,0.00041313,120]
[422129322,1778600886000,948.0,0.00041313,120]
[422129325,1778600886000,227.66045607,0.00041313,120]
[422129327,1778600886000,520.0,0.00041313,120]
[422129326,1778600886000,151.0,0.00041313,120]
[422129324,1778600886000,1030.0,0.00041313,120]
[422129329,1778600887000,1068.11,0.00041313,120]
[422129328,1778600887000,7142.856,0.00041313,120]
[422129330,1778600887000,151.0,0.00041313,120]
[422129331,1778600887000,539.24,0.00041313,120]
[422129332,1778600887000,7407.141672,0.00041313,120]
[422129337,1778600888000,1148.61238259,0.00041313,120]
[422129335,1778600888000,7681.20591386,0.00041313,120]
[422129336,1778600888000,151.0,0.00041313,120]
[422129334,1778600888000,559.19188,0.00041313,120]
[422129333,1778600888000,1107.63007,0.00041313,120]
[422129339,1778600889000,151.0,0.00041313,120]
[422129338,1778600889000,151.0,0.00041313,120]
[422129342,1778600890000,151.0,0.00041313,120]
[422129340,1778600890000,151.0,0.00041313,120]
[422129341,1778600890000,150.0,0.00016438,30]
[422129346,1778600891000,642.94,0.00041313,120]
[422129345,1778600891000,151.0,0.00041313,120]
[422129344,1778600891000,150.0,0.00016438,30]
[422129343,1778600891000,620.0,0.00041313,120]
[422129347,1778600892000,642.94,0.00041313,120]
[422129348,1778600896000,500.0,0.00041313,120]
[422129349,1778600897000,500.0,0.00041313,120]
[422129350,1778600897000,500.0,0.00041313,120]
[422129351,1778600898000,500.0,0.00041313,120]
[422129352,1778600898000,500.0,0.00041313,120]
[422129353,1778600899000,500.0,0.00041313,120]
[422129355,1778600945000,681.10121885,0.00041313,120]
[422129354,1778600945000,1674.88867116,0.00041313,120]
[422129356,1778600945000,159.17933481,0.00041313,120]
[422129357,1778600948000,175.76671738,0.00041313,120]
[422129358,1778600951000,500.0,0.00041313,120]
[422129359,1778600955000,151.0,0.00041313,120]
[422129360,1778600959000,150.0,0.00041313,120]
[422129361,1778600962000,-158.8874,9.003e-05,2]
[422129362,1778600977000,125.37450788,0.00016438,30]
[422129363,1778600977000,42.48282389,0.00016438,30]
[422129364,1778600994000,151.0715986,0.00016438,30]
[422129365,1778601011000,169.95554842,0.00016438,30]
[422129366,1778601029000,198.28147316,0.00016438,30]
[422129396,1778601032000,-172.01,0.00012753,2]
[422129397,1778601032000,-2000.0,0.00012759,2]
[422129399,1778601032000,-150.0,0.0001278,2]
[422129398,1778601032000,-4269.76,0.00012759,2]
[422129406,1778601032000,-150.0,0.00012847,2]
[422129404,1778601032000,-150.0,0.00012847,2]
[422129401,1778601032000,-160.0,0.00012818,2]
[422129402,1778601032000,-150.0,0.00012847,2]
[422129409,1778601032000,-1264.53,0.00012916,2]
[422129395,1778601032000,-4173.04,0.00012749,2]
[422129403,1778601032000,-150.0,0.00012847,2]
[422129412,1778601032000,-150.0,0.00013025,2]
[422129405,1778601032000,-150.0,0.00012847,2]
[422129407,1778601032000,-150.0,0.00012847,2]
[422129408,1778601032000,-291.76,0.00012912,2]
[422129410,1778601032000,-150.0,0.00012936,2]
[422129386,1778601032000,-300.0,0.00012451,2]
[422129411,1778601032000,-150.0,0.00013025,2]
[422129424,1778601032000,-1264.53,0.00013231,2]
[422129422,1778601032000,-467.79,0.00013228,2]
[422129415,1778601032000,-165.25,0.00013132,2]
[422129413,1778601032000,-150.0,0.00013084,2]
[422129400,1778601032000,-170.77,0.0001278,2]
[422129391,1778601032000,-300.0,0.0001273,2]
[422129388,1778601032000,-2182.29,0.00012452,2]
[422129394,1778601032000,-150.0,0.00012749,2]
[422129368,1778601032000,-13.1226,9.003e-05,2]
[422129369,1778601032000,-172.01,0.00010253,2]
[422129372,1778601032000,-1.50464402,0.0001215,2]
[422129373,1778601032000,-148.49535598,0.0001215,2]
[422129370,1778601032000,-172.01,0.00011503,2]
[422129371,1778601032000,-500.0,0.00011863,2]
[422129374,1778601032000,-233.7320766,0.00012156,2]
[422129376,1778601032000,-500.0,0.00012162,2]
[422129378,1778601032000,-684.44739421,0.00012192,2]
[422129375,1778601032000,-2993.8479234,0.00012156,2]
[422129377,1778601032000,-315.55260579,0.00012192,2]
[422129380,1778601032000,-200.0,0.00012202,2]
[422129381,1778601032000,-211.23,0.00012314,2]
[422129382,1778601032000,-195.91,0.00012404,2]
[422129379,1778601032000,-500.0,0.00012194,2]
[422129383,1778601032000,-1200.0,0.00012413,2]
[422129384,1778601032000,-140.75538961,0.00012414,2]
[422129390,1778601032000,-508.0,0.00012603,2]
[422129414,1778601032000,-150.0,0.00013114,2]
[422129393,1778601032000,-158.76,0.00012746,2]
[422129387,1778601032000,-300.0,0.00012451,2]
[422129392,1778601032000,-2209.99,0.00012732,2]
[422129389,1778601032000,-1264.53,0.00012601,2]
[422129385,1778601032000,-1711.66461039,0.00012414,2]
[422129420,1778601032000,-150.0,0.00013203,2]
[422129440,1778601032000,-1000.0,0.00013321,2]
[422129418,1778601032000,-467.79,0.00013203,2]
[422129455,1778601032000,-150.0,0.00013418,2]
[422129452,1778601032000,-483.08,0.00013395,2]
[422129457,1778601032000,-483.08,0.00013427,2]
[422129458,1778601032000,-495.29966014,0.0001343,2]
[422129464,1778601032000,-750.97509043,0.0001346,2]
[422129459,1778601032000,-483.12319758,0.00013446,2]
[422129466,1778601032000,-11852.84690317,0.0001346,2]
[422129465,1778601032000,-5932.24436322,0.0001346,2]
[422129468,1778601032000,-150.0,0.00013471,2]
[422129467,1778601032000,-168.84673618,0.0001346,2]
[422129462,1778601032000,-467.80108368,0.00013447,2]
[422129460,1778601032000,-472.76924,0.00013447,2]
[422129461,1778601032000,-1603.169233,0.00013447,2]
[422129463,1778601032000,-241.12677068,0.0001346,2]
[422129473,1778601032000,-12870.34974556,0.00013559,2]
[422129471,1778601032000,-500.0,0.00013552,2]
[422129474,1778601032000,-259.37939,0.00013559,2]
[422129475,1778601032000,-335.31456548,0.00013559,2]
[422129470,1778601032000,-1264.53,0.00013546,2]
[422129472,1778601032000,-256861.78366945,0.00013559,2]
[422129476,1778601032000,-1299.03109547,0.00013559,2]
[422129469,1778601032000,-1200.0,0.000135,4]
[422129477,1778601032000,-2468.05833915,0.00013559,2]
[422129417,1778601032000,-483.08,0.00013202,2]
[422129451,1778601032000,-150.0,0.00013382,2]
[422129450,1778601032000,-150.0,0.00013382,2]
[422129453,1778601032000,-467.79,0.00013399,2]
[422129416,1778601032000,-150.0,0.00013132,2]
[422129421,1778601032000,-483.08,0.00013222,2]
[422129419,1778601032000,-150.0,0.00013203,2]
[422129439,1778601032000,-483.08,0.00013318,2]
[422129437,1778601032000,-483.08,0.00013298,2]